[Event "56th Biel Festival Rapid 2023"]
[Site "Biel"]
[Date "2024.04.13"]
[Round "8.40"]
[White "Kleinert, Juergen"]
[Black "Girardin Elias"]
[Result "1-0"]
[WhiteElo "1802"]
[BlackElo "1419"]
[PlyCount "77"]
[EventDate "2023.07.16"]
[EventType "swiss"]
[EventCountry "SUI"]
[TimeControl "900+5"]

1. e4 {[%emt 0:00:10]} c5 {[%emt 0:00:01]} 2. c3 {[%emt 0:00:00]} d5 {[%emt 0:00:02]} 3. exd5 {[%emt 0:00:06]} Qxd5 {[%emt 0:00:01]} 4. d4 {[%emt 0:00:01]} g6 {[%emt 0:00:03]} 5. Nf3 {[%emt 0:00:15]} Bg7 {[%emt 0:00:02]} 6. Be3 {[%emt 0:00:02]} Bg4 {[%emt 0:00:09]} 7. dxc5 {[%emt 0:00:17]} Qxd1+ {[%emt 0:00:06]} 8. Kxd1 {[%emt 0:00:02]} Nd7 {[%emt 0:00:23]} 9. Bb5 {[%emt 0:00:09]} O-O-O {[%emt 0:00:09]} 10. Ke2 {[%emt 0:00:16]} Ne5 {[%emt 0:00:36]} 11. h3 {[%emt 0:00:10]} Bxf3+ {[%emt 0:00:37]} 12. gxf3 {[%emt 0:00:01]} a6 {[%emt 0:00:26]} 13. Ba4 {[%emt 0:00:07]} Nc4 {[%emt 0:00:14]} 14. Nd2 {[%emt 0:01:46]} Nxb2 {[%emt 0:00:13]} 15. Bb3 {[%emt 0:00:16]} Bxc3 {[%emt 0:00:29]} 16. Bxf7 {[%emt 0:00:58]} Nf6 {[%emt 0:01:13]} 17. Ne4 {[%emt 0:01:48]} Nxe4 {[%emt 0:00:33]} 18. fxe4 {[%emt 0:00:01]} Rhf8 {[%emt 0:00:36]} 19. Be6+ {[%emt 0:00:05]} Kb8 {[%emt 0:00:04]} 20. Rab1 {[%emt 0:00:50]} Rf6 {[%emt 0:02:22]} 21. Bd5 {[%emt 0:01:08]} Rdf8 {[%emt 0:00:45]} 22. Rhc1 {[%emt 0:01:10]} Na4 {[%emt 0:04:20]} 23. Bb3 {[%emt 0:01:42]} Bb2 {[%emt 0:00:39]} 24. Bxa4 {[%emt 0:00:51]} Bxc1 {[%emt 0:00:02]} 25. Rxc1 {[%emt 0:00:02]} Rf3 {[%emt 0:00:12]} 26. Bd7 {[%emt 0:00:55]} Kc7 {[%emt 0:00:18]} 27. Bg4 {[%emt 0:00:32]} R3f7 {[%emt 0:00:12]} 28. f4 {[%emt 0:00:25]} h5 {[%emt 0:00:15]} 29. Be6 {[%emt 0:00:23]} Rf6 {[%emt 0:00:05]} 30. f5 {[%emt 0:00:05]} gxf5 {[%emt 0:00:10]} 31. exf5 {[%emt 0:00:10]} Rd8 {[%emt 0:01:51]} 32. Bg5 {[%emt 0:00:07]} Rxe6+ {[%emt 0:00:13]} 33. fxe6 {[%emt 0:00:05]} Rd5 {[%emt 0:00:01]} 34. Bxe7 {[%emt 0:00:24]} Re5+ {[%emt 0:00:04]} 35. Kf3 {[%emt 0:00:03]} Rxe6 {[%emt 0:00:02]} 36. Bd6+ {[%emt 0:00:01]} Kc6 {[%emt 0:00:05]} 37. Rb1 {[%emt 0:00:13]} Rf6+ {[%emt 0:00:00]} 38. Ke4 {[%emt 0:00:05]} Rg6 {[%emt 0:00:04]} 39. Rb6+ {[%emt 0:00:06]} 1-0

[Event "56th Biel Festival Rapid 2023"]
[Site "Biel"]
[Date "2024.04.13"]
[Round "8.46"]
[White "Materia, Mario"]
[Black "Lang, Fabian"]
[Result "*"]
[WhiteElo "1196"]
[BlackElo "1914"]
[PlyCount "108"]
[EventDate "2023.07.16"]
[EventType "swiss"]
[EventCountry "SUI"]
[TimeControl "900+5"]

1. d4 {[%emt 0:00:10]} d5 {[%emt 0:00:02]} 2. c4 {[%emt 0:00:03]} c6 {[%emt 0:00:02]} 3. Nc3 {[%emt 0:00:02]} Nf6 {[%emt 0:00:01]} 4. Nf3 {[%emt 0:00:02]} dxc4 {[%emt 0:00:08]} 5. e4 {[%emt 0:00:08]} b5 {[%emt 0:00:08]} 6. a4 {[%emt 0:00:03]} b4 {[%emt 0:00:15]} 7. e5 {[%emt 0:00:18]} Nd5 {[%emt 0:00:13]} 8. Ne4 {[%emt 0:00:27]} Bf5 {[%emt 0:01:07]} 9. Nc5 {[%emt 0:00:10]} c3 {[%emt 0:00:20]} 10. Bd3 {[%emt 0:00:19]} Bxd3 {[%emt 0:00:16]} 11. Nxd3 {[%emt 0:00:11]} e6 {[%emt 0:00:14]} 12. O-O {[%emt 0:00:03]} Nd7 {[%emt 0:00:09]} 13. Nfe1 {[%emt 0:01:09]} Be7 {[%emt 0:00:17]} 14. f4 {[%emt 0:00:02]} Qb6 {[%emt 0:00:26]} 15. bxc3 {[%emt 0:00:07]} Nxc3 {[%emt 0:00:24]} 16. Qg4 {[%emt 0:00:11]} Qxd4+ {[%emt 0:00:11]} 17. Kh1 {[%emt 0:00:01]} Rg8 {[%emt 0:00:39]} 18. Qf3 {[%emt 0:00:17]} Nd5 {[%emt 0:00:10]} 19. Nc2 {[%emt 0:00:09]} Qc4 {[%emt 0:00:12]} 20. f5 {[%emt 0:00:40]} a5 {[%emt 0:00:17]} 21. Rf2 {[%emt 0:00:05]} O-O-O {[%emt 0:00:40]} 22. Bb2 {[%emt 0:00:36]} Kb7 {[%emt 0:00:59]} 23. Rc1 {[%emt 0:00:05]} Qa6 {[%emt 0:00:08]} 24. Nd4 {[%emt 0:00:07]} c5 {[%emt 0:01:19]} 25. Nb5 {[%emt 0:00:11]} Rc8 {[%emt 0:00:46]} 26. Nf4 {[%emt 0:00:07]} Qc6 {[%emt 0:01:08]} 27. Nxd5 {[%emt 0:00:25]} exd5 {[%emt 0:00:22]} 28. Rd1 {[%emt 0:00:09]} d4 {[%emt 0:00:11]} 29. Qxc6+ {[%emt 0:00:17]} Rxc6 {[%emt 0:00:08]} 30. Re2 {[%emt 0:00:23]} Re8 {[%emt 0:00:18]} 31. Rde1 {[%emt 0:00:28]} d3 {[%emt 0:00:24]} 32. Rd2 {[%emt 0:00:10]} c4 {[%emt 0:00:04]} 33. Nd4 {[%emt 0:00:03]} c3 {[%emt 0:00:45]} 34. Nxc6 {[%emt 0:00:07]} cxd2 {[%emt 0:00:46]} 35. Nxa5+ {[%emt 0:00:10]} Ka6 {[%emt 0:00:01]} 36. Rd1 {[%emt 0:00:11]} Kxa5 {[%emt 0:00:14]} 37. Rxd2 {[%emt 0:00:02]} Nc5 {[%emt 0:00:09]} 38. Bd4 {[%emt 0:00:06]} Rd8 {[%emt 0:00:06]} 39. Bxc5 {[%emt 0:00:11]} Bxc5 {[%emt 0:00:02]} 40. h3 {[%emt 0:00:04]} Be3 {[%emt 0:00:06]} 41. Rd1 {[%emt 0:00:03]} d2 {[%emt 0:00:16]} 42. Kh2 {[%emt 0:00:08]} Bf4+ {[%emt 0:00:03]} 43. g3 {[%emt 0:00:05]} Bxe5 {[%emt 0:00:02]} 44. Kg2 {[%emt 0:00:01]} Bc3 {[%emt 0:00:10]} 45. Kf2 {[%emt 0:00:00]} Re8 {[%emt 0:00:02]} 46. g4 {[%emt 0:00:00]} Re1 {[%emt 0:00:04]} 47. Kf3 {[%emt 0:00:11]} Rxd1 {[%emt 0:00:03]} 48. Ke2 {[%emt 0:00:06]} Re1+ {[%emt 0:00:04]} 49. Kf3 {[%emt 0:00:00]} d1=Q+ {[%emt 0:00:04]} 50. Kf4 {[%emt 0:00:00]} Bf6 {[%emt 0:00:11]} 51. g5 {[%emt 0:00:02]} Qd4+ {[%emt 0:00:05]} 52. Kf3 {[%emt 0:00:02]} Re3+ {[%emt 0:00:04]} 53. Kg2 {[%emt 0:00:02]} Qd2+ {[%emt 0:00:02]} 54. Kf1 {[%emt 0:00:02]} Re1# {[%emt 0:00:04]} *

[Event "56th Biel Festival Rapid 2023"]
[Site "Biel"]
[Date "2024.04.13"]
[Round "9.1"]
[White "Rodrigue-Lemieux, Shawn"]
[Black "Quesada Perez, Luis Ernesto"]
[Result "*"]
[WhiteElo "2495"]
[BlackElo "2553"]
[PlyCount "57"]
[EventDate "2023.07.16"]
[EventType "swiss"]
[EventCountry "SUI"]
[TimeControl "900+5"]

1. e4 {[%emt 0:00:03]} e6 {[%emt 0:00:02]} 2. d4 {[%emt 0:00:01]} d5 {[%emt 0:00:05]} 3. Nd2 {[%emt 0:00:02]} dxe4 {[%emt 0:00:05]} 4. Nxe4 {[%emt 0:00:02]} Nd7 {[%emt 0:00:02]} 5. g3 {[%emt 0:00:01]} Ngf6 {[%emt 0:00:30]} 6. Nxf6+ {[%emt 0:00:02]} Nxf6 {[%emt 0:00:02]} 7. Bg2 {[%emt 0:00:02]} e5 {[%emt 0:00:03]} 8. Qe2 {[%emt 0:01:10]} Qxd4 {[%emt 0:01:11]} 9. Nf3 {[%emt 0:00:02]} Qe4 {[%emt 0:02:02]} 10. Qxe4 {[%emt 0:00:02]} Nxe4 {[%emt 0:00:02]} 11. Nxe5 {[%emt 0:00:01]} Nd6 {[%emt 0:00:07]} 12. O-O {[%emt 0:00:06]} Bf5 {[%emt 0:00:07]} 13. Nc6 {[%emt 0:00:38]} Be4 {[%emt 0:01:28]} 14. Bxe4 {[%emt 0:00:21]} Nxe4 {[%emt 0:00:01]} 15. Re1 {[%emt 0:00:02]} bxc6 {[%emt 0:00:01]} 16. Rxe4+ {[%emt 0:00:01]} Kd7 {[%emt 0:00:06]} 17. Be3 {[%emt 0:00:05]} Bd6 {[%emt 0:00:01]} 18. Rd1 {[%emt 0:00:11]} Rhe8 {[%emt 0:00:14]} 19. Rh4 {[%emt 0:00:16]} h6 {[%emt 0:00:03]} 20. Rg4 {[%emt 0:00:53]} g5 {[%emt 0:00:18]} 21. Ra4 {[%emt 0:00:16]} Re5 {[%emt 0:02:30]} 22. h4 {[%emt 0:00:18]} c5 {[%emt 0:01:02]} 23. hxg5 {[%emt 0:00:30]} hxg5 {[%emt 0:00:01]} 24. Kg2 {[%emt 0:00:05]} Kc6 {[%emt 0:00:10]} 25. Rh1 {[%emt 0:00:21]} Kb7 {[%emt 0:01:36]} 26. Rh7 {[%emt 0:00:33]} f6 {[%emt 0:00:05]} 27. Rf7 {[%emt 0:00:21]} Rf8 {[%emt 0:00:11]} 28. Rxf8 {[%emt 0:00:02]} Bxf8 {[%emt 0:00:02]} 29. Kf3 {[%emt 0:00:01]} *

[Event "56th Biel Festival Rapid 2023"]
[Site "Biel"]
[Date "2024.04.13"]
[Round "9.2"]
[White "Pranav Anand"]
[Black "Yuffa, Daniil"]
[Result "*"]
[WhiteElo "2510"]
[BlackElo "2603"]
[PlyCount "38"]
[EventDate "2023.07.16"]
[EventType "swiss"]
[EventCountry "SUI"]
[TimeControl "900+5"]

1. d4 {[%emt 0:00:03]} Nf6 {[%emt 0:00:04]} 2. c4 {[%emt 0:00:01]} g6 {[%emt 0:00:05]} 3. h4 {[%emt 0:00:03]} c5 {[%emt 0:00:09]} 4. d5 {[%emt 0:00:03]} b5 {[%emt 0:00:08]} 5. cxb5 {[%emt 0:00:04]} a6 {[%emt 0:00:03]} 6. e3 {[%emt 0:00:09]} Bg7 {[%emt 0:00:26]} 7. Nc3 {[%emt 0:00:10]} d6 {[%emt 0:00:30]} 8. a4 {[%emt 0:00:13]} O-O {[%emt 0:00:08]} 9. Nf3 {[%emt 0:00:06]} Bg4 {[%emt 0:00:48]} 10. Ra3 {[%emt 0:00:52]} axb5 {[%emt 0:00:45]} 11. Bxb5 {[%emt 0:00:11]} Na6 {[%emt 0:00:33]} 12. e4 {[%emt 0:01:07]} Nb4 {[%emt 0:00:14]} 13. Bg5 {[%emt 0:01:02]} Nd7 {[%emt 0:01:36]} 14. Be2 {[%emt 0:00:59]} Nb6 {[%emt 0:00:11]} 15. Qd2 {[%emt 0:00:54]} f5 {[%emt 0:00:45]} 16. Nh2 {[%emt 0:01:10]} Bxe2 {[%emt 0:00:43]} 17. Qxe2 {[%emt 0:00:01]} f4 {[%emt 0:01:04]} 18. h5 {[%emt 0:00:56]} Qe8 {[%emt 0:01:11]} 19. h6 {[%emt 0:00:24]} Bh8 {[%emt 0:00:51]} *

[Event "56th Biel Festival Rapid 2023"]
[Site "Biel"]
[Date "2024.04.13"]
[Round "9.3"]
[White "Materia, Marco"]
[Black "Bharath Subramaniyam H"]
[Result "*"]
[WhiteElo "2436"]
[BlackElo "2488"]
[PlyCount "46"]
[EventDate "2023.07.16"]
[EventType "swiss"]
[EventCountry "SUI"]
[TimeControl "900+5"]

1. d4 {[%emt 0:00:02]} Nf6 {[%emt 0:00:03]} 2. c4 {[%emt 0:00:02]} e6 {[%emt 0:00:05]} 3. Nf3 {[%emt 0:00:02]} Bb4+ {[%emt 0:00:07]} 4. Bd2 {[%emt 0:00:01]} c5 {[%emt 0:00:01]} 5. Bxb4 {[%emt 0:00:16]} cxb4 {[%emt 0:00:01]} 6. Nbd2 {[%emt 0:00:12]} O-O {[%emt 0:00:06]} 7. g3 {[%emt 0:00:26]} b6 {[%emt 0:00:03]} 8. Bg2 {[%emt 0:00:03]} Bb7 {[%emt 0:00:02]} 9. O-O {[%emt 0:00:03]} Qe7 {[%emt 0:00:18]} 10. Re1 {[%emt 0:00:10]} d6 {[%emt 0:00:19]} 11. e4 {[%emt 0:00:06]} e5 {[%emt 0:00:23]} 12. a3 {[%emt 0:00:19]} bxa3 {[%emt 0:00:30]} 13. Rxa3 {[%emt 0:00:01]} Nc6 {[%emt 0:00:18]} 14. Rd3 {[%emt 0:01:35]} a5 {[%emt 0:00:37]} 15. Nb1 {[%emt 0:00:32]} Rac8 {[%emt 0:01:58]} 16. Na3 {[%emt 0:00:18]} Nb4 {[%emt 0:00:13]} 17. Rde3 {[%emt 0:00:01]} Rfd8 {[%emt 0:01:49]} 18. b3 {[%emt 0:00:20]} Ba6 {[%emt 0:00:07]} 19. Qd2 {[%emt 0:00:41]} Nc6 {[%emt 0:00:37]} 20. Rd3 {[%emt 0:01:29]} Nd7 {[%emt 0:01:09]} 21. Bh3 {[%emt 0:00:14]} Nb4 {[%emt 0:01:18]} 22. Rc3 {[%emt 0:00:16]} Rb8 {[%emt 0:00:10]} 23. Nh4 {[%emt 0:00:33]} g6 {[%emt 0:00:17]} *

[Event "56th Biel Festival Rapid 2023"]
[Site "Biel"]
[Date "2024.04.13"]
[Round "9.4"]
[White "Saraci, Nderim"]
[Black "Vincenti, Leonardo"]
[Result "*"]
[WhiteElo "2472"]
[BlackElo "2117"]
[PlyCount "45"]
[EventDate "2023.07.16"]
[EventType "swiss"]
[EventCountry "SUI"]
[TimeControl "900+5"]

1. Nf3 {[%emt 0:00:04]} d5 {[%emt 0:00:00]} 2. g3 {[%emt 0:00:05]} c6 {[%emt 0:00:06]} 3. Bg2 {[%emt 0:00:03]} Bg4 {[%emt 0:00:00]} 4. O-O {[%emt 0:00:06]} Nf6 {[%emt 0:00:00]} 5. d3 {[%emt 0:00:40]} Nbd7 {[%emt 0:00:02]} 6. h3 {[%emt 0:00:29]} Bh5 {[%emt 0:00:27]} 7. Nc3 {[%emt 0:00:18]} e5 {[%emt 0:00:07]} 8. e4 {[%emt 0:00:02]} d4 {[%emt 0:00:51]} 9. Ne2 {[%emt 0:00:12]} Bd6 {[%emt 0:00:11]} 10. Nh4 {[%emt 0:00:23]} O-O {[%emt 0:00:49]} 11. Qe1 {[%emt 0:00:20]} Bxe2 {[%emt 0:00:21]} 12. Qxe2 {[%emt 0:00:02]} Re8 {[%emt 0:00:53]} 13. Nf5 {[%emt 0:01:05]} Bf8 {[%emt 0:00:25]} 14. f4 {[%emt 0:00:21]} h6 {[%emt 0:01:41]} 15. Bd2 {[%emt 0:01:15]} Kh7 {[%emt 0:00:16]} 16. fxe5 {[%emt 0:01:01]} Nxe5 {[%emt 0:00:01]} 17. Qf2 {[%emt 0:00:19]} c5 {[%emt 0:00:46]} 18. Nxh6 {[%emt 0:02:33]} gxh6 {[%emt 0:00:01]} 19. Qxf6 {[%emt 0:00:02]} Qxf6 {[%emt 0:00:02]} 20. Rxf6 {[%emt 0:00:03]} Bg7 {[%emt 0:00:01]} 21. Rf2 {[%emt 0:00:13]} c4 {[%emt 0:00:06]} 22. Bf1 {[%emt 0:00:02]} Rac8 {[%emt 0:01:11]} 23. Bf4 {[%emt 0:00:05]} *

[Event "56th Biel Festival Rapid 2023"]
[Site "Biel"]
[Date "2024.01.27"]
[Round "9.5"]
[White "Harikrishnan.A.Ra"]
[Black "Akshit Kumar J"]
[Result "*"]
[WhiteElo "2406"]
[BlackElo "2105"]
[Annotator "TA"]
[PlyCount "38"]
[EventDate "2023.07.16"]
[EventType "swiss"]
[EventCountry "SUI"]
[TimeControl "900+5"]

{[%evp 9,38,-12,7,-10,0,0,1,0,19,-5,7,-12,-1,-14,-2,-8,14,10,17,0,0,0,18,22,20,27,32,33,18,12,14]} 1. d4 {[%emt 0:00:03]} d5 {[%emt 0:00:01]} 2. Nf3 {[%emt 0:00:04]} Nf6 {[%emt 0:00:02]} 3. c3 {[%emt 0:00:01][%cal Bc2c3,Bc3c4][%mdl 32]} Bf5 {[%emt 0:00:10]} 4. Qb3 {[%emt 0:00:02]} Qc8 {[%emt 0:00:01]} 5. c4 {[%emt 0:00:02]} e6 {[%emt 0:01:21]} 6. Nc3 {[%emt 0:00:32]} c6 {[%emt 0:00:05]} 7. Bg5 {[%emt 0:00:42]} Nbd7 {[%emt 0:00:31]} 8. e3 {[%emt 0:00:27]} Bd6 {[%emt 0:00:26]} 9. Rc1 {[%emt 0:00:15]} O-O {[%emt 0:00:20]} 10. Be2 {[%emt 0:00:04]} h6 {[%emt 0:00:27]} 11. Bh4 {[%emt 0:00:02]} Re8 {[%emt 0:01:36]} 12. O-O {[%emt 0:00:05]} dxc4 {[%emt 0:00:30]} 13. Bxc4 {[%emt 0:00:05]} Qc7 {[%emt 0:00:12]} 14. Bg3 {[%emt 0:02:36]} Bxg3 {[%emt 0:00:12]} 15. hxg3 {[%emt 0:00:02]} Ne4 {[%emt 0:00:49]} 16. Rfd1 {[%emt 0:01:24]} Rad8 {[%emt 0:02:11]} 17. Qa3 {[%emt 0:00:47]} Qb8 {[%emt 0:01:10]} 18. Nxe4 {[%emt 0:01:08]} Bxe4 {[%emt 0:00:02]} 19. Nd2 {[%emt 0:00:01]} Bg6 {[%emt 0:00:07] An uneventful encounter.   Weighted Error Value: White=0.08 (flawless) /Black=0.09 (flawless) .  OK:         	White=1     	Black=2} *

[Event "56th Biel Festival Rapid 2023"]
[Site "Biel"]
[Date "2024.01.27"]
[Round "9.6"]
[White "Erdos, Viktor"]
[Black "Toktomushev, Teimur"]
[Result "*"]
[WhiteElo "2571"]
[BlackElo "2206"]
[Annotator "TA"]
[PlyCount "27"]
[EventDate "2023.07.16"]
[EventType "swiss"]
[EventCountry "SUI"]
[TimeControl "900+5"]

{[%evp 10,27,28,12,41,30,20,11,50,37,52,14,2,-16,29,40,73,64,74,62]} 1. e4 {[%emt 0:00:04]} c5 {[%emt 0:00:02]} 2. Nf3 {[%emt 0:00:03]} e6 {[%emt 0:00:02]} 3. b3 {[%emt 0:00:01]} d6 {[%emt 0:00:05]} 4. Bb2 {[%emt 0:00:03]} Nf6 {[%emt 0:00:02]} 5. e5 {[%emt 0:00:01]} dxe5 {[%emt 0:00:02]} 6. Nxe5 {[%emt 0:00:02]} Qc7 {[%emt 0:00:46]} 7. Na3 {[%emt 0:00:42][%cal Bb1a3,Ba3c4,Bc4e3][%mdl 32]} a6 {[%emt 0:00:46]} 8. Qf3 {[%emt 0:00:17]} Bd7 {[%emt 0:03:27] The position is equal.} (8... Ra7 $5) 9. Nac4 {[%emt 0:01:00]} Nc6 {[%emt 0:05:40]} 10. Nxd7 {[%emt 0:01:04]} Nxd7 {[%emt 0:00:02]} 11. g3 {[%emt 0:00:05]} Rc8 {[%emt 0:01:24]} 12. Bg2 {[%emt 0:00:06]} b5 {[%emt 0:00:31] [#]} 13. Ne3 {[%emt 0:01:08] White is more active.} Nd4 {[%emt 0:00:59]} 14. Qb7 {[%emt 0:00:05] Weighted Error Value: White=0.13 (very precise) /Black=0.20 (precise) .  Inaccurate:     	White=1     	Black=3      OK:         	White=3     	Black=2      Best:        	White=1     	Black=1} *

[Event "56th Biel Festival Rapid 2023"]
[Site "Biel"]
[Date "2024.01.27"]
[Round "9.7"]
[White "Ouellet, Maili-Jade"]
[Black "Huang, Renjie"]
[Result "*"]
[WhiteElo "2201"]
[BlackElo "2445"]
[Annotator "TA"]
[PlyCount "48"]
[EventDate "2023.07.16"]
[EventType "swiss"]
[EventCountry "SUI"]
[TimeControl "900+5"]

{[%evp 16,48,35,39,56,33,33,33,119,130,123,110,103,73,104,91,142,94,228,0,0,0,0,-29,51,61,53,73,63,0,0,0,0,0,0]} 1. d4 {[%emt 0:00:03]} Nf6 {[%emt 0:00:01]} 2. c4 {[%emt 0:00:01]} g6 {[%emt 0:00:00]} 3. f3 {[%emt 0:00:03]} d5 {[%emt 0:00:05]} 4. cxd5 {[%emt 0:00:02]} Nxd5 {[%emt 0:00:01]} 5. e4 {[%emt 0:00:01]} Nb6 {[%emt 0:00:01]} 6. Nc3 {[%emt 0:00:02]} Bg7 {[%emt 0:00:10]} 7. Be3 {[%emt 0:00:02]} O-O {[%emt 0:00:02]} 8. Qd2 {[%emt 0:00:01]} Nc6 {[%emt 0:00:01]} 9. O-O-O {[%emt 0:00:05]} f5 {[%emt 0:00:02]} 10. e5 {[%emt 0:00:05]} Nb4 {[%emt 0:00:35]} 11. Nh3 {[%emt 0:00:15]} N6d5 {[%emt 0:00:37]} (11... a5 $14) 12. Bc4 $16 {[%emt 0:01:22] [#] Strongly threatening a3.} e6 {[%emt 0:00:04]} 13. Bg5 {[%emt 0:01:27]} Qd7 {[%emt 0:00:24]} 14. Kb1 {[%emt 0:01:00]} (14. Nxd5 {simplifies} Nxd5 15. Kb1 c6 16. Nf2) 14... a5 {[%emt 0:00:16]} 15. Nf4 {[%emt 0:00:37]} (15. Bxd5 {simplifies} Nxd5 16. Nxd5 exd5 17. Nf2) 15... c6 {[%emt 0:00:05]} (15... h6 $142) 16. Na4 {[%emt 0:00:50]} (16. Bxd5 $142 Nxd5 17. Nfxd5 exd5 18. Ka1) 16... h6 {[%emt 0:00:53] [#]} (16... Qf7 $16) 17. Nxd5 $2 {[%emt 0:04:19]} (17. Bxd5 $1 $18 Qe8 18. Bb3 hxg5 19. Nh3 (19. Nb6 gxf4 20. Nxa8 Qd8 $16)) 17... cxd5 $11 {[%emt 0:00:10]} 18. Nb6 {[%emt 0:00:08]} Qc6 {[%emt 0:00:01]} 19. Nxa8 {[%emt 0:00:05]} Qxc4 {[%emt 0:00:02]} (19... dxc4 $11 20. Bxh6 f4 21. Bxg7 (21. Bxf4 Bd7 $17) 21... Kxg7) 20. b3 $14 {[%emt 0:00:12]} (20. Bxh6 $2 {is a self mate.} Qxa2+ 21. Kc1 Qa1#) 20... Qa6 {[%emt 0:00:01]} 21. Bxh6 {[%emt 0:00:56]} Qxa8 {[%emt 0:00:45]} 22. Qg5 {[%emt 0:00:20]} (22. h4 $14 Bd7 23. a3) 22... Bd7 $11 {[%emt 0:00:22] And now ...a4 would win. The position is equal.} 23. Qxg6 {[%emt 0:00:29]} Rf7 {[%emt 0:00:05] White must now prevent ...a4.} 24. a3 {[%emt 0:00:42] Really sharp!} Nc6 {[%emt 0:00:00] Weighted Error Value: White=0.33/Black=0.33.  Missed win:     	White=1     	---        Mistake:       	White=2     	Black=4      OK:         	White=5     	Black=8      Best:        	White=1     	Black=1} *

[Event "56th Biel Festival Rapid 2023"]
[Site "Biel"]
[Date "2024.01.27"]
[Round "9.8"]
[White "Huston, Gus"]
[Black "Erne, Raphael"]
[Result "*"]
[WhiteElo "2341"]
[BlackElo "2077"]
[Annotator "TA"]
[PlyCount "56"]
[EventDate "2023.07.16"]
[EventType "swiss"]
[EventCountry "SUI"]
[TimeControl "900+5"]

{[%evp 9,56,16,9,9,2,0,0,3,8,6,11,1,8,3,6,0,2,10,5,-7,9,0,12,24,2,1,10,10,90,85,96,73,92,-54,-54,-53,-34,-61,-73,-71,-64,-49,-64,-91,-53,-51,-26,-27,0]} 1. e4 {[%emt 0:00:03]} c6 {[%emt 0:00:08]} 2. d4 {[%emt 0:00:01]} d5 {[%emt 0:00:02]} 3. e5 {[%emt 0:00:01]} c5 {[%emt 0:00:02]} 4. Nf3 {[%emt 0:00:02]} cxd4 {[%emt 0:00:02]} 5. Nxd4 {[%emt 0:00:02]} Nc6 {[%emt 0:00:08]} 6. Nxc6 {[%emt 0:00:01]} bxc6 {[%emt 0:00:02]} 7. Bd3 {[%emt 0:00:01]} e6 {[%emt 0:00:40]} 8. O-O {[%emt 0:00:04] The position is equal.} Ne7 {[%emt 0:00:51]} 9. Be3 {[%emt 0:00:01]} Ng6 {[%emt 0:00:10]} 10. f4 {[%emt 0:00:01]} Be7 {[%emt 0:00:19]} 11. g3 {[%emt 0:00:05]} c5 {[%emt 0:01:13]} 12. c4 {[%emt 0:00:00]} d4 {[%emt 0:00:24]} 13. Bc1 {[%emt 0:00:00]} Bb7 {[%emt 0:00:42]} 14. Nd2 {[%emt 0:00:00]} O-O {[%emt 0:02:06]} 15. h4 {[%emt 0:00:00][%cal Bh2h4,Bh4h5][%mdl 32]} Re8 {[%emt 0:00:32]} (15... Bxh4 $5 16. gxh4 Qxh4 $11) 16. h5 {[%emt 0:00:01]} Nf8 {[%emt 0:00:05]} 17. Qe2 {[%emt 0:00:01][%cal Oh5h6]} f6 {[%emt 0:01:09]} 18. exf6 {[%emt 0:00:24]} Bxf6 {[%emt 0:00:19]} (18... gxf6 $11 {keeps the balance.} 19. f5 Kh8) 19. Ne4 $16 {[%emt 0:00:01]} Rc8 {[%emt 0:01:01]} 20. Bd2 {[%emt 0:00:01]} e5 {[%emt 0:00:54]} 21. f5 {[%emt 0:00:25] White has more active pieces.} ({White should try} 21. fxe5 $16 Bxe5 22. Qg4) 21... h6 $15 {[%emt 0:01:08]} 22. Rae1 {[%emt 0:00:01]} Nh7 {[%emt 0:00:14]} 23. Qg4 {[%emt 0:00:16]} Kh8 {[%emt 0:00:34]} 24. Rf2 {[%emt 0:00:27]} Qe7 {[%emt 0:01:49]} 25. Rfe2 {[%emt 0:00:05]} Bxe4 {[%emt 0:00:37]} 26. Bxe4 {[%emt 0:00:05]} Rb8 {[%emt 0:00:14]} 27. b3 {[%emt 0:00:09]} Qd7 {[%emt 0:00:08]} 28. Bd5 {[%emt 0:00:04]} Rf8 {[%emt 0:00:21] Weighted Error Value: White=0.13 (very precise) /Black=0.13 (very precise) .  Mistake:       	White=1     	Black=1      Inaccurate:     	White=2     	Black=2      OK:         	White=8     	Black=7      Best:        	White=1     	---} *

[Event "56th Biel Festival Rapid 2023"]
[Site "Biel"]
[Date "2024.01.23"]
[Round "9.9"]
[White "Tkhoruk, Roman"]
[Black "Habibi, Ali"]
[Result "0-1"]
[WhiteElo "1803"]
[BlackElo "2171"]
[Annotator "TA"]
[PlyCount "50"]
[EventDate "2023.07.16"]
[EventType "swiss"]
[EventCountry "SUI"]
[TimeControl "900+5"]

{[%evp 9,50,-16,-9,-21,-19,-33,-12,-14,22,-17,-11,-29,-23,-32,-24,-31,-21,-54,-43,-68,-64,-93,-68,-91,-66,-108,-78,-338,-339,-412,-215,-353,-354,-426,-405,-382,-404,-474,-466,-854,-836,-801,-676]} 1. d4 {[%emt 0:00:03]} Nf6 {[%emt 0:00:05]} 2. Bg5 {[%emt 0:00:02]} d5 {[%emt 0:00:08]} 3. Bxf6 {[%emt 0:00:05]} exf6 {[%emt 0:00:09]} 4. e3 {[%emt 0:00:01]} Be6 {[%emt 0:00:15]} 5. h3 {[%emt 0:00:09]} Bd6 {[%emt 0:00:06]} 6. c3 {[%emt 0:00:10]} O-O {[%emt 0:00:07]} 7. Nd2 {[%emt 0:00:33]} c6 {[%emt 0:00:18]} 8. Bd3 {[%emt 0:00:15] Die Stellung ist ausgeglichen.} f5 {[%emt 0:00:04]} 9. Qc2 {[%emt 0:00:20]} g6 {[%emt 0:00:04]} 10. h4 {[%emt 0:00:32]} Nd7 {[%emt 0:00:11][%cal Bb8d7,Bd7f6,Bf6e4][%mdl 32]} 11. h5 {[%emt 0:00:30]} Nf6 {[%emt 0:00:02]} 12. hxg6 {[%emt 0:00:18]} fxg6 {[%emt 0:00:31]} 13. Ngf3 {[%emt 0:00:07]} Ne4 {[%emt 0:00:05]} 14. Ke2 {[%emt 0:00:27]} Qe7 {[%emt 0:00:21]} 15. Rh6 {[%emt 0:00:23]} Rf7 {[%emt 0:00:21]} 16. Rah1 {[%emt 0:00:31]} b5 {[%emt 0:00:28]} 17. Nh4 {[%emt 0:00:25][%cal Oh4g6] [#] Schwarz muss nun Nxg6! beachten.} Rg7 {[%emt 0:00:18]} 18. Bxe4 $2 {[%emt 0:01:36][%mdl 8192] Verliert die Partie.} (18. Nhf3 $17 {kämpft weiter.}) 18... fxe4 $19 {[%emt 0:00:06]} ({Schwächer ist} 18... dxe4 19. g3 $17) 19. f4 {[%emt 0:00:15]} Rf8 {[%emt 0:00:40]} (19... g5 $142 {[%cal Og5f4] Und ...gxf4! würde nun gewinnen.} 20. g4 Bxg4+ (20... gxh4 $2 21. R1xh4 Bxg4+ 22. Ke1 $19) 21. Ke1 gxh4 22. R6xh4 Rf8) 20. Kd1 {[%emt 0:00:29] Weiss ist schwach auf den weissen Feldern} (20. g3 $142) 20... c5 {[%emt 0:00:30]} 21. g3 {[%emt 0:00:24]} Bg4+ {[%emt 0:00:20]} 22. Kc1 {[%emt 0:00:02]} cxd4 {[%emt 0:00:09]} 23. exd4 {[%emt 0:00:15]} b4 {[%emt 0:00:35] Schwarz steht klar auf Gewinn.} 24. Qb3 {[%emt 0:00:34]} (24. c4 $142 e3 25. c5) 24... bxc3 {[%emt 0:00:49]} 25. bxc3 {[%emt 0:00:39]} Qe6 {[%emt 0:01:04] Gewichteter Fehlerwert: Weiß=0.81/Schwarz=0.23 (präzise) .  Verlustzug:     	Weiß=1     	---        Fehler:       	Weiß=2     	Schwarz=1     Ungenau:       	Weiß=4     	Schwarz=1     OK:         	Weiß=5     	Schwarz=8     Bester:       	---       	Schwarz=1} 0-1